bitfinex/quotes_SOLUSD_20240905
["timestamp","ask_amount","ask_price","bid_price","bid_amount"]
[1725521413606,15.7538,133.5,133.47,7.4922]
[1725521413796,6.5291,133.52,133.47,7.4922]
[1725521414005,20.0,133.51,133.48,1.49800038]
[1725521414517,20.0,133.51,133.47,7.4922]
[1725521415902,20.0,133.51,133.48,1.49798595]
[1725521416093,20.0,133.51,133.47,7.4922]
[1725521417404,20.0,133.51,133.48,1.49802814]
[1725521418297,16.1531,133.54,133.49,1.49798563]
[1725521418519,16.1531,133.54,133.49,8.98888563]
[1725521418694,6.545,133.55,133.51,7.4897]
[1725521418899,15.7237,133.57,133.52,1.4976038]
[1725521419598,15.7237,133.57,133.53,7.4888]
[1725521419815,15.7237,133.57,133.54,1.49736452]
[1725521420014,15.7237,133.57,133.53,7.4888]
[1725521420518,15.7237,133.57,133.52,18.7228]
[1725521420926,15.7237,133.57,133.53,7.4887]
[1725521421497,6.545,133.58,133.54,1.4973397]
[1725521421714,16.6,133.6,133.55,1.49722042]
[1725521422020,20.0,133.59,133.55,1.49722042]
[1725521423196,20.0,133.59,133.55,7.4877]
[1725521423401,20.0,133.59,133.56,8.98417054]
[1725521424100,6.3639,133.62,133.57,7.4866]
[1725521424298,20.0,133.61,133.57,7.4866]
[1725521424614,16.4867,133.64,133.58,7.486]
[1725521424808,16.4867,133.64,133.59,8.98217409]
[1725521425012,16.4867,133.64,133.56,30.78985157]
[1725521425219,16.4867,133.64,133.57,30.0]
[1725521425220,16.87796182,133.64,133.57,30.0]
[1725521425596,16.87796182,133.64,133.54,7.4879]
[1725521425817,20.0,133.63,133.54,7.4879]
[1725521426118,0.39126182,133.62,133.55,1.49711787]
[1725521426431,45.39126182,133.62,133.55,1.49711787]
[1725521426599,20.0,133.61,133.55,7.4878]
[1725521427302,0.39126182,133.62,133.55,7.4878]
[1725521428034,45.39126182,133.62,133.54,7.4882]
[1725521428200,20.0,133.61,133.54,7.4882]
[1725521428515,20.39126182,133.61,133.54,7.4882]
[1725521429224,0.39126182,133.6,133.54,7.4882]
[1725521429412,20.39126182,133.61,133.54,7.4882]
[1725521430923,22.88516182,133.6,133.51,6.05315046]
[1725521431114,20.0,133.59,133.52,30.0]
[1725521431309,20.0,133.59,133.5,26.216]
[1725521431310,0.39126182,133.58,133.51,7.4899]
[1725521431508,0.39126182,133.58,133.52,1.4975302]
[1725521431718,20.39126182,133.59,133.5,18.7258]
[1725521432710,20.39126182,133.59,133.52,7.4891]
[1725521432910,20.0,133.59,133.53,8.98603974]
[1725521433508,20.0,133.59,133.53,7.4887]
[1725521434734,22.4939,133.6,133.54,8.98532715]
[1725521434919,22.4939,133.6,133.55,1.4970809]
[1725521435237,22.4939,133.6,133.55,7.4876]
[1725521435525,22.4939,133.6,133.54,26.2086]
[1725521436331,20.0,133.59,133.55,1.49718754]
[1725521436528,20.39126182,133.59,133.51,20.22157309]
[1725521436734,45.0,133.58,133.48,21.83664337]
[1725521436926,20.39126182,133.57,133.49,7.4907]
[1725521437231,20.0,133.57,133.51,7.49]
[1725521437416,20.39126182,133.58,133.52,1.49748501]
[1725521437933,20.39126182,133.58,133.5,26.2165]
[1725521438528,20.39126182,133.58,133.47,6.5049]
[1725521438529,21.6998,133.56,133.47,18.7301]
[1725521438732,20.39126182,133.55,133.48,30.0]
[1725521438913,0.39126182,133.54,133.48,30.0]
[1725521439314,45.39126182,133.54,133.48,30.0]
[1725521439628,21.6998,133.53,133.44,7.4939]
[1725521439832,65.39126182,133.52,133.45,30.0]
[1725521440214,65.39126182,133.52,133.46,1.49828399]
[1725521442135,65.39126182,133.52,133.45,7.4934]
[1725521444522,65.39126182,133.52,133.44,1.49836737]
[1725521445610,65.39126182,133.52,133.44,8.99196737]
[1725521445832,20.39126182,133.52,133.44,8.99196737]
[1725521446026,45.0,133.51,133.44,8.99196737]
[1725521446214,20.0,133.5,133.44,7.4936]
[1725521446414,0.39126182,133.51,133.45,1.49827136]
[1725521446724,45.39126182,133.51,133.44,7.4936]
[1725521446922,20.0,133.5,133.44,7.4936]
[1725521447112,20.0,133.5,133.45,1.49832033]
[1725521448537,20.39126182,133.52,133.45,1.49832033]
[1725521448733,0.39126182,133.51,133.44,7.4936]
[1725521448936,0.39126182,133.51,133.45,1.49826869]
[1725521449442,45.39126182,133.51,133.45,1.49826869]
[1725521449645,20.0,133.5,133.45,1.49826869]
[1725521450138,20.39126182,133.5,133.45,1.49826869]
[1725521450640,66.6235,133.49,133.39,7.4966]
[1725521450848,20.39126182,133.48,133.39,7.4966]
[1725521451142,45.0,133.47,133.4,7.4961]
[1725521451328,20.39126182,133.46,133.39,26.2376]
[1725521451847,20.39126182,133.46,133.4,7.4961]
[1725521453622,21.6235,133.49,133.42,7.495]
[1725521453817,20.39126182,133.48,133.42,7.495]
[1725521457246,20.39126182,133.48,133.41,26.234]
[1725521457842,20.39126182,133.48,133.42,1.49867436]
[1725521458040,45.0,133.47,133.41,18.7385]
[1725521458234,45.39126182,133.47,133.41,18.7385]
[1725521461848,45.39126182,133.47,133.41,20.23734719]
[1725521462154,0.39126182,133.47,133.41,26.2341]
[1725521462346,20.39126182,133.48,133.42,8.99380387]
[1725521462525,20.39126182,133.48,133.43,1.49857767]
[1725521463069,20.39126182,133.48,133.41,18.7385]
[1725521463224,20.39126182,133.48,133.41,20.23731567]
[1725521463650,45.0,133.47,133.41,1.49881567]
[1725521463832,45.0,133.47,133.38,18.7429]
[1725521463833,20.39126182,133.46,133.38,26.2402]
[1725521464142,45.39126182,133.45,133.39,30.0]
[1725521464345,41.934,133.44,133.4,1.49903229]
[1725521464645,42.32526182,133.44,133.4,1.49898812]
[1725521464849,42.32526182,133.44,133.37,0.3727652]
[1725521465048,42.32526182,133.44,133.37,19.1168652]
[1725521465223,42.32526182,133.44,133.38,1.49914002]
[1725521465627,42.32526182,133.44,133.37,26.6145652]
[1725521465628,42.32526182,133.44,133.37,0.3727652]
[1725521465827,45.0,133.43,133.37,0.3727652]
[1725521466034,20.39126182,133.42,133.37,0.3727652]
[1725521466748,45.0,133.41,133.37,0.3727652]
[1725521466943,0.39126182,133.4,133.37,0.3727652]
[1725521470328,20.0,133.42,133.37,0.3727652]
[1725521470540,20.39126182,133.43,133.37,0.3727652]
[1725521470832,0.39126182,133.42,133.37,0.3727652]
[1725521471646,20.0,133.43,133.37,7.8706652]
[1725521471854,20.39126182,133.43,133.38,1.49917916]
[1725521472354,0.39126182,133.42,133.38,1.49917916]
[1725521473654,20.0,133.43,133.38,8.99647916]
[1725521475851,6.486,133.47,133.41,7.4955]
[1725521476155,6.486,133.47,133.42,8.9935568]
[1725521476359,6.486,133.47,133.43,1.49860896]
[1725521476828,6.486,133.47,133.43,8.99300896]
[1725521477030,15.8287,133.48,133.43,8.99300896]
[1725521477429,15.8287,133.48,133.43,1.49860896]
[1725521477752,6.5515,133.51,133.44,1.4983345]
[1725521477997,15.5578,133.53,133.46,18.7315]
[1725521478144,0.39126182,133.52,133.47,1.49803885]
[1725521478452,0.39126182,133.52,133.47,7.4918]
[1725521478649,0.39126182,133.52,133.47,8.98991081]
[1725521478863,15.5578,133.53,133.47,8.98991081]
[1725521479163,15.5578,133.53,133.47,7.4918]
[1725521479334,20.0,133.52,133.47,7.4918]
[1725521479537,20.0,133.52,133.48,8.98950642]
[1725521480452,20.0,133.52,133.49,7.491]
[1725521480627,20.0,133.52,133.47,8.98997288]
[1725521481059,20.0,133.52,133.46,18.7315]
[1725521481232,20.0,133.52,133.47,1.49800862]
[1725521481548,17.9435644,133.56,133.48,18.7281]
[1725521481757,0.39126182,133.55,133.5,7.4905]
[1725521482071,0.39126182,133.55,133.51,1.49773791]
[1725521482245,0.39126182,133.55,133.48,26.2193]
[1725521482560,0.39126182,133.55,133.49,7.4909]
[1725521482755,0.39126182,133.55,133.48,18.7281]
[1725521482756,20.39126182,133.55,133.48,18.7281]
[1725521482957,20.39126182,133.55,133.5,7.4905]
[1725521483741,6.1142,133.57,133.51,1.49770901]
[1725521484061,6.1142,133.57,133.52,8.98679939]
[1725521484368,6.1142,133.57,133.53,7.4888]
[1725521484549,15.3898,133.59,133.54,1.49732622]
[1725521484741,15.3898,133.59,133.54,8.98552622]
[1725521484941,15.3898,133.59,133.55,1.49729803]
[1725521485151,2.28937663,133.6,133.55,1.49729803]
[1725521485348,0.39126182,133.59,133.55,1.49729803]
[1725521486963,0.39126182,133.59,133.53,26.2109]
[1725521487160,0.39126182,133.59,133.54,1.49729853]
[1725521488167,0.39126182,133.59,133.52,7.4893]
[1725521488465,0.39126182,133.59,133.53,1.49739033]
[1725521490369,0.39126182,133.59,133.52,7.4893]
[1725521490661,45.39126182,133.59,133.51,7.49]
[1725521490866,20.0,133.58,133.52,1.4975548]
[1725521491068,0.39126182,133.57,133.52,1.4975548]
[1725521491444,20.0,133.58,133.52,20.2205548]
[1725521491644,20.39126182,133.6,133.52,20.2205548]
[1725521492165,16.56,133.62,133.57,7.4867]
[1725521492351,16.56,133.62,133.58,1.49690428]
[1725521492744,6.311,133.64,133.58,1.49690428]
[1725521492985,6.311,133.64,133.57,7.4867]
[1725521492986,6.70226182,133.64,133.57,7.4867]
[1725521493173,6.70226182,133.64,133.56,26.2044]
[1725521494372,8.94060772,133.64,133.56,26.2044]
[1725521494662,8.94060772,133.64,133.57,7.4866]
[1725521494873,65.0,133.63,133.58,1.49704093]
[1725521495048,0.39126182,133.62,133.58,1.49704093]
[1725521495762,65.0,133.63,133.58,1.49704093]
[1725521495967,20.0,133.63,133.58,1.49704093]
[1725521496147,20.39126182,133.63,133.58,1.49704093]
[1725521496547,20.39126182,133.63,133.57,7.4866]
[1725521497150,20.39126182,133.63,133.58,1.49698173]
[1725521497366,20.39126182,133.63,133.57,7.4866]
[1725521499448,20.39126182,133.63,133.56,26.2044]
[1725521499677,45.0,133.62,133.56,26.2044]
[1725521499864,0.39126182,133.61,133.56,26.2044]
[1725521502373,0.39126182,133.61,133.57,1.49710522]
[1725521502884,0.39126182,133.61,133.56,26.2044]
[1725521503254,0.39126182,133.61,133.57,1.49710991]
[1725521503753,0.39126182,133.61,133.56,26.2044]
[1725521504154,0.39126182,133.61,133.57,1.49711352]
[1725521504380,0.39126182,133.61,133.57,1.49711524]
[1725521505058,20.0,133.63,133.57,7.4866]
[1725521505271,0.39126182,133.62,133.57,7.4866]
[1725521509285,0.39126182,133.62,133.56,26.2045]
[1725521509461,45.39126182,133.62,133.56,26.2045]
[1725521509979,45.39126182,133.62,133.57,1.4970959]
[1725521510169,45.39126182,133.62,133.56,26.2045]
[1725521510371,45.39126182,133.62,133.57,1.49710553]
[1725521512674,45.39126182,133.62,133.56,26.2045]
[1725521513887,0.39126182,133.62,133.56,26.2045]
[1725521514067,0.39126182,133.62,133.57,8.98351832]
[1725521514392,0.39126182,133.62,133.58,1.49693506]
[1725521516093,0.39126182,133.62,133.56,26.2044]
[1725521516587,0.39126182,133.62,133.56,18.7173]
[1725521516772,0.39126182,133.62,133.53,58.7466]
[1725521516773,45.39126182,133.62,133.54,7.4882]
[1725521517086,20.0,133.61,133.55,37.4877]
[1725521517268,0.39126182,133.6,133.55,37.4877]
[1725521517767,0.39126182,133.6,133.55,7.4877]
[1725521519375,0.39126182,133.6,133.54,7.4882]
[1725521519574,45.39126182,133.6,133.54,7.4882]
[1725521521690,45.39126182,133.6,133.55,1.49731027]
[1725521521869,45.39126182,133.6,133.54,7.4882]
[1725521523191,20.0,133.61,133.55,20.21610016]
[1725521523374,20.39126182,133.63,133.56,30.0]
[1725521523570,20.39126182,133.63,133.57,1.49692597]
[1725521523777,20.0,133.63,133.58,7.486]
[1725521524091,20.0,133.63,133.59,1.4968047]
[1725521524290,0.39126182,133.62,133.56,30.0]
[1725521524480,20.39126182,133.63,133.56,37.4868]
[1725521524794,20.39126182,133.63,133.57,7.4865]
[1725521524963,20.0,133.63,133.56,30.0]
[1725521525290,6.3435,133.67,133.62,7.4837]
[1725521525589,6.3435,133.67,133.63,1.4964366]
[1725521526166,6.3435,133.67,133.62,7.4838]
[1725521526391,16.35486182,133.69,133.63,1.49635694]
[1725521526765,18.56868735,133.69,133.63,8.97955694]
[1725521526969,18.56868735,133.69,133.6,18.7114]
[1725521527171,18.56868735,133.69,133.61,1.49631258]
[1725521527373,18.56868735,133.69,133.61,30.0]
[1725521527691,20.0,133.68,133.62,8.97969143]
[1725521528766,20.0,133.68,133.62,7.4834]
[1725521529587,20.0,133.68,133.63,1.49621761]
[1725521530191,20.0,133.68,133.64,1.49621833]
[1725521530516,18.17742553,133.69,133.64,1.49621833]
[1725521530517,39.3647822,133.7,133.66,7.4815]
[1725521530701,39.3647822,133.7,133.67,1.49585893]
[1725521531674,39.3647822,133.7,133.67,8.97665893]
[1725521531878,39.3647822,133.7,133.68,1.49574705]
[1725521532075,39.3647822,133.7,133.69,7.4799]
[1725521533799,39.3647822,133.7,133.68,7.4805]
[1725521534097,39.3647822,133.7,133.67,48.702]
[1725521534098,39.3647822,133.7,133.67,56.183]
[1725521534305,39.3647822,133.7,133.68,1.49577175]
[1725521534600,39.3647822,133.7,133.65,7.4822]
[1725521534910,39.3647822,133.7,133.66,30.0]
[1725521535589,0.39126182,133.69,133.61,18.7107]
[1725521535902,0.39126182,133.69,133.59,16.4841]
[1725521535903,65.39126182,133.69,133.59,16.4841]
[1725521536097,65.39126182,133.69,133.58,18.7153]
[1725521536981,65.39126182,133.69,133.58,26.2014]
[1725521537205,65.39126182,133.69,133.59,1.49664265]
[1725521538030,65.39126182,133.69,133.58,26.2014]
[1725521538729,67.59225469,133.69,133.58,26.2014]
[1725521539378,67.59225469,133.69,133.59,1.49662204]
[1725521541592,67.59225469,133.69,133.58,26.2014]
[1725521542517,22.0497,133.68,133.55,18.7192]
[1725521542815,87.78246182,133.67,133.54,2.84829254]
[1725521543010,6.6293,133.64,133.55,30.0]
[1725521543200,20.39126182,133.63,133.55,30.0]
[1725521543389,45.0,133.62,133.55,30.0]
[1725521543590,20.39126182,133.61,133.54,4.34544425]
[1725521543787,45.0,133.6,133.55,1.49734011]
[1725521543988,0.39126182,133.59,133.55,1.49734011]
[1725521544415,0.39126182,133.59,133.53,1.49734026]
[1725521544715,0.39126182,133.59,133.52,26.2131]
[1725521545697,0.39126182,133.59,133.53,1.497347]
[1725521546115,45.39126182,133.6,133.53,8.986247]
[1725521546312,45.39126182,133.6,133.53,7.4889]
[1725521547891,45.0,133.6,133.54,7.4882]
[1725521548095,45.0,133.6,133.55,1.49716753]
[1725521548399,45.39126182,133.6,133.55,1.49716753]
[1725521548599,45.39126182,133.6,133.53,7.4888]
[1725521549512,20.0,133.61,133.54,7.4882]
[1725521549722,20.39126182,133.63,133.54,8.98537329]
[1725521549900,45.0,133.62,133.56,7.4871]
[1725521550096,20.0,133.61,133.57,1.49693488]
[1725521550420,0.39126182,133.61,133.55,26.2068]
[1725521550712,0.39126182,133.62,133.55,26.2068]
[1725521551429,45.39126182,133.62,133.55,26.2068]
[1725521551602,20.0,133.63,133.56,1.49697949]
[1725521551920,20.39126182,133.63,133.55,26.2068]
[1725521552298,20.39126182,133.63,133.56,7.4871]
[1725521552520,20.0,133.63,133.57,8.98350339]
[1725521552720,7.02056182,133.64,133.57,8.98350339]
[1725521552904,45.0,133.63,133.57,8.98350339]
[1725521553100,45.0,133.63,133.57,7.4866]
[1725521553514,6.6293,133.64,133.57,7.4866]
[1725521553815,7.02056182,133.64,133.57,7.4866]
[1725521554014,7.02056182,133.64,133.58,7.4861]
[1725521554200,7.02056182,133.64,133.57,7.4866]
[1725521554796,21.7468,133.67,133.57,18.7157]
[1725521555012,21.7468,133.67,133.59,7.4855]
[1725521555013,20.39126182,133.66,133.59,7.4855]
[1725521555213,20.0,133.66,133.59,7.4855]
[1725521556405,20.39126182,133.66,133.59,37.4855]
[1725521556708,20.39126182,133.66,133.6,1.49645639]
[1725521556896,20.39126182,133.66,133.61,1.49654518]
[1725521558298,20.39126182,133.66,133.6,1.49654581]
[1725521558792,20.39126182,133.66,133.61,1.4965458]
[1725521558992,45.0,133.65,133.57,18.7157]
[1725521559210,0.39126182,133.64,133.57,18.7157]
[1725521559703,45.39126182,133.65,133.58,8.98268043]
[1725521559905,45.39126182,133.65,133.58,7.486]
[1725521560724,20.0,133.66,133.6,26.1972]
[1725521561025,20.0,133.66,133.61,1.49647751]
[1725521561421,20.0,133.66,133.6,26.1972]
[1725521561629,20.0,133.66,133.62,1.49647751]
[1725521565127,20.0,133.66,133.6,26.1972]
[1725521565426,20.39126182,133.66,133.59,30.0]
[1725521565600,20.0,133.66,133.59,37.4854]
[1725521565805,20.0,133.66,133.6,1.49645798]
[1725521567214,20.0,133.66,133.59,37.4854]
[1725521567798,20.39126182,133.66,133.59,37.4854]
[1725521571730,20.0,133.66,133.59,37.4854]
[1725521572028,0.39126182,133.69,133.63,7.4829]
[1725521572235,61.6978822,133.7,133.64,1.4960588]
[1725521572531,61.6978822,133.7,133.65,1.49598703]
[1725521572901,61.6978822,133.7,133.63,7.4829]
[1725521574015,61.6978822,133.7,133.64,1.49602201]
[1725521574219,61.6978822,133.7,133.65,1.49599512]
[1725521574613,61.6978822,133.7,133.63,7.4829]
[1725521574614,61.6978822,133.7,133.63,18.7078]
[1725521575712,61.6978822,133.7,133.64,37.4827]
[1725521576120,61.6978822,133.7,133.65,1.49587868]
[1725521576618,61.6978822,133.7,133.64,30.0]
[1725521576944,61.6978822,133.7,133.65,30.0]
[1725521577110,61.6978822,133.7,133.62,26.1922]
[1725521577832,61.6978822,133.7,133.63,30.0]
[1725521578632,0.39126182,133.69,133.6,16.2582]
[1725521578929,65.39126182,133.69,133.61,30.0]
[1725521579634,65.39126182,133.69,133.57,18.87411347]
[1725521579945,65.39126182,133.69,133.57,2.83959175]
[1725521580324,65.39126182,133.69,133.57,7.4866]
[1725521580828,22.3277,133.68,133.56,294.9334]
[1725521581034,65.39126182,133.67,133.56,294.9334]
[1725521581436,65.39126182,133.67,133.58,18.7141]
[1725521581739,65.39126182,133.67,133.58,26.1998]
[1725521581929,65.39126182,133.67,133.57,2.8410926]
[1725521582435,65.39126182,133.67,133.56,268.7288]
[1725521582821,65.39126182,133.67,133.56,15.2288]
[1725521583241,15.9347,133.66,133.55,26.2062]
[1725521583445,71.53286182,133.65,133.55,26.2062]
[1725521583742,0.39126182,133.64,133.55,26.2062]
[1725521584051,0.39126182,133.64,133.55,18.7189]
[1725521585149,0.39126182,133.64,133.56,1.49688769]
[1725521586255,0.39126182,133.64,133.55,18.7189]
[1725521587829,0.39126182,133.64,133.54,7.4882]
[1725521590856,0.39126182,133.64,133.53,15.799]
[1725521591063,6.6259,133.62,133.52,29.05591729]
[1725521591240,65.39126182,133.61,133.52,29.05591729]
[1725521591559,65.39126182,133.61,133.52,38.43887783]
[1725521591868,65.39126182,133.61,133.52,29.05591729]
[1725521592454,65.39126182,133.61,133.52,26.2124]
[1725521592662,65.39126182,133.61,133.52,35.59642572]
[1725521592849,65.39126182,133.61,133.52,26.2124]
[1725521593359,65.39126182,133.61,133.53,1.49711278]
[1725521593537,65.39126182,133.61,133.52,26.2124]
[1725521593855,65.39126182,133.61,133.52,35.59642572]
[1725521594156,65.39126182,133.61,133.52,26.2124]
[1725521594367,65.39126182,133.61,133.52,35.59642572]
[1725521594662,65.39126182,133.61,133.52,26.2124]
[1725521594844,65.39126182,133.61,133.52,35.59642572]
[1725521595047,65.39126182,133.61,133.52,26.2124]
[1725521595557,65.39126182,133.61,133.52,35.59642572]
[1725521595762,65.39126182,133.61,133.52,26.2124]
[1725521596234,65.0,133.61,133.53,7.4889]
[1725521596437,20.0,133.61,133.53,8.98601519]
[1725521597662,20.0,133.61,133.53,7.4889]
[1725521598359,20.0,133.61,133.54,1.49690023]
[1725521599358,20.0,133.61,133.55,7.4878]
[1725521599652,20.0,133.61,133.56,1.49686518]
[1725521600045,20.0,133.61,133.55,7.4878]
[1725521601358,8.86469672,133.62,133.56,8.98381555]
[1725521601735,6.6259,133.62,133.56,27.70081555]
[1725521602165,16.3217,133.63,133.56,27.70081555]
[1725521602464,16.3217,133.63,133.57,7.4865]
[1725521603249,16.3217,133.63,133.56,26.204]
[1725521603462,16.3217,133.63,133.57,30.0]
[1725521603764,18.50983329,133.63,133.57,30.0]
[1725521603936,18.50983329,133.63,133.58,1.49661482]
[1725521604335,18.50983329,133.63,133.57,37.4866]
[1725521604861,18.50983329,133.63,133.56,26.204]
[1725521606160,18.50983329,133.63,133.55,9.38185652]
[1725521606359,18.50983329,133.63,133.56,30.0]
[1725521606762,18.50983329,133.63,133.57,7.4865]
[1725521609156,18.50983329,133.63,133.56,37.487]
[1725521609361,18.50983329,133.63,133.57,1.49661609]
[1725521609545,18.50983329,133.63,133.58,1.4966162]
[1725521610542,18.50983329,133.63,133.56,37.487]
[1725521611244,18.50983329,133.63,133.57,20.21251656]
[1725521611562,18.50983329,133.63,133.58,7.486]
[1725521611563,16.3217,133.63,133.58,7.486]
[1725521611765,16.3217,133.63,133.59,1.49650929]
[1725521612468,0.39126182,133.69,133.59,7.4855]
[1725521612469,15.7237,133.67,133.59,7.4855]
[1725521612764,15.7237,133.67,133.6,8.98116674]
[1725521613076,15.7237,133.67,133.61,1.49615326]
[1725521614164,15.7237,133.67,133.6,7.485]
[1725521614358,45.0,133.66,133.58,16.86650327]
[1725521614669,15.7237,133.67,133.59,1.49624237]
[1725521614968,15.7237,133.67,133.59,8.98134237]
[1725521615462,15.7237,133.67,133.6,7.485]
[1725521615853,15.7237,133.67,133.61,1.49616127]
[1725521616063,15.7237,133.67,133.6,7.485]
[1725521616274,15.7237,133.67,133.59,26.1989]
[1725521617457,15.7237,133.67,133.6,30.0]
[1725521618167,15.7237,133.67,133.61,1.49618735]
[1725521618748,15.7237,133.67,133.6,7.4848]
[1725521621364,15.7237,133.67,133.59,41.4901]
[1725521621549,15.7237,133.67,133.6,30.0]
[1725521621751,15.7237,133.67,133.6,39.37977275]
[1725521627874,15.7237,133.67,133.6,30.0]
[1725521629554,71.1837,133.66,133.57,15.00764444]
[1725521629757,0.39126182,133.65,133.57,15.00764444]
[1725521629958,0.39126182,133.65,133.53,294.4946]
[1725521630149,71.1837,133.66,133.55,37.4872]
[1725521630767,71.1837,133.66,133.55,46.86851135]
[1725521630975,0.39126182,133.65,133.55,39.38131135]
[1725521633464,71.1837,133.66,133.56,1.49657487]
[1725521633666,71.1837,133.66,133.55,39.38131135]
[1725521633862,71.1837,133.66,133.56,1.49645013]
[1725521634270,71.1837,133.66,133.55,46.86901135]
[1725521634564,15.3826,133.64,133.55,30.0]
[1725521634753,6.0446,133.62,133.55,30.0]
[1725521635076,60.77386182,133.61,133.55,30.0]
[1725521635289,6.0446,133.59,133.52,1.3042214]
[1725521635466,45.0,133.58,133.53,30.0]
[1725521636076,16.79626182,133.57,133.5,9.38131135]
[1725521636260,71.3139,133.56,133.46,15.01009816]
[1725521636580,0.39126182,133.55,133.43,24.39687516]
[1725521636783,0.39126182,133.55,133.44,9.386777]
[1725521636980,0.39126182,133.55,133.45,9.386777]
[1725521637155,0.39126182,133.55,133.43,9.386777]
[1725521637783,0.39126182,133.55,133.44,1.49788094]
[1725521637969,0.39126182,133.55,133.43,9.386777]
[1725521638481,0.39126182,133.55,133.42,32.002977]
[1725521638671,0.39126182,133.55,133.44,1.49787849]
[1725521640285,53.56593946,133.56,133.44,1.49787849]
[1725521640492,51.3139,133.56,133.45,1.49757838]
[1725521640990,6.3139,133.56,133.45,18.7324]
[1725521641290,6.3139,133.56,133.48,7.4916]
[1725521641494,6.3139,133.56,133.49,8.98845084]
[1725521641784,6.3139,133.56,133.49,1.49735084]
[1725521642191,6.3139,133.56,133.48,26.2209]
[1725521642390,6.3139,133.56,133.48,18.7293]
[1725521642691,6.3139,133.56,133.48,26.2208]
[1725521642982,6.3139,133.56,133.49,1.49733272]
[1725521643483,6.3139,133.56,133.51,7.4898]
[1725521643688,6.3139,133.56,133.52,1.49723169]
[1725521643982,16.405,133.57,133.51,7.4896]
[1725521644888,16.405,133.57,133.52,1.49713436]
[1725521645067,6.264,133.6,133.52,1.49713436]
[1725521645265,6.264,133.6,133.53,7.4886]
[1725521645469,6.264,133.6,133.54,1.49684064]
[1725521645885,6.264,133.6,133.53,7.4886]
[1725521646576,6.264,133.6,133.55,7.4873]
[1725521646763,6.264,133.6,133.56,1.4968191]
[1725521647171,6.264,133.6,133.5,9.38546539]
[1725521647385,6.264,133.6,133.52,30.0]
[1725521647872,6.264,133.6,133.51,20.0]
[1725521648272,6.264,133.6,133.51,27.49]
[1725521649073,6.264,133.6,133.52,1.49695372]
[1725521649275,6.264,133.6,133.53,7.4886]
[1725521649595,6.264,133.6,133.54,1.49683885]
[1725521649891,6.264,133.6,133.55,1.49683347]
[1725521650604,6.264,133.6,133.54,7.4882]
[1725521652094,6.264,133.6,133.53,7.4888]
[1725521654588,6.264,133.6,133.55,7.4873]
[1725521654785,6.264,133.6,133.56,1.49674802]
[1725521656393,6.264,133.6,133.54,26.208]
[1725521656588,6.264,133.6,133.55,30.0]
[1725521657403,6.264,133.6,133.54,26.208]
[1725521657909,6.264,133.6,133.51,54.9911]
[1725521658200,6.264,133.6,133.53,30.0]
[1725521658406,6.264,133.6,133.51,38.7244]
[1725521658407,6.264,133.6,133.52,9.38289138]
[1725521658609,6.264,133.6,133.51,46.2144]
[1725521659107,6.264,133.6,133.52,38.98643582]
[1725521659406,6.264,133.6,133.52,48.36989946]
[1725521660101,6.264,133.6,133.52,18.36989946]
[1725521660305,6.264,133.6,133.52,8.98643582]
[1725521660692,6.264,133.6,133.53,7.4888]
[1725521660890,6.264,133.6,133.54,1.49684735]
[1725521661105,6.264,133.6,133.55,1.49683051]
[1725521661799,6.264,133.6,133.53,7.4888]
[1725521663205,6.264,133.6,133.52,16.87286364]
[1725521663403,6.264,133.6,133.53,30.0]
[1725521664204,6.264,133.6,133.54,1.49696156]
[1725521664506,6.264,133.6,133.55,1.49690674]
[1725521665224,6.264,133.6,133.53,28.10516364]
[1725521665511,6.264,133.6,133.53,35.59396364]
[1725521665718,6.264,133.6,133.53,18.7217]
[1725521669191,6.264,133.6,133.54,1.49690386]
[1725521669814,6.264,133.6,133.53,18.7217]
[1725521670906,6.264,133.6,133.52,10.33332653]
[1725521671217,6.264,133.6,133.53,30.0]
[1725521672915,6.264,133.6,133.51,36.87335978]
[1725521673089,6.264,133.6,133.52,2.84443568]